bitfinex/quotes_ETHUSD_20251012
["timestamp","ask_amount","ask_price","bid_price","bid_amount"]
[1760267807022,2.5536,3832.0,3830.9,0.002]
[1760267807235,0.6336,3832.0,3830.9,0.002]
[1760267807521,0.13211895,3831.9,3831.0,0.432]
[1760267807892,0.2303,3832.2,3831.0,0.432]
[1760267808088,0.4438,3831.9,3831.1,14.5]
[1760267812714,0.4438,3832.3,3831.2,0.432]
[1760267814203,0.4438,3832.3,3831.3,14.502]
[1760267815198,0.2303,3832.5,3831.3,14.502]
[1760267815398,0.4438,3832.4,3831.3,14.502]
[1760267815626,0.4438,3832.3,3831.3,14.502]
[1760267816225,0.4438,3832.2,3831.3,14.502]
[1760267816430,0.4438,3832.1,3831.3,14.502]
[1760267816732,0.4438,3832.0,3831.3,14.502]
[1760267816926,0.4438,3831.9,3831.3,14.502]
[1760267817306,0.4438,3831.8,3831.3,14.502]
[1760267817506,0.6336,3832.4,3831.3,14.502]
[1760267817507,0.4438,3831.7,3831.3,14.502]
[1760267817835,0.4438,3831.6,3831.3,14.502]
[1760267818220,0.4438,3831.9,3831.3,14.502]
[1760267819144,0.6336,3831.7,3831.3,0.002]
[1760267819635,0.2303,3832.5,3831.3,0.002]
[1760267819636,0.4438,3831.6,3831.3,0.002]
[1760267820206,0.6336,3831.5,3831.3,0.002]
[1760267820679,0.4438,3831.6,3831.3,0.002]
[1760267820680,1.0774,3831.4,3831.3,0.002]
[1760267824049,1.2260795,3831.4,3831.3,0.002]
[1760267824629,2.5536,3831.1,3830.9,0.002]
[1760267824830,2.5536,3831.0,3830.9,0.002]
[1760267825058,7.024888,3831.0,3830.9,0.002]
[1760267825232,7.43439697,3831.0,3830.9,0.002]
[1760267825432,8.17783667,3831.0,3830.9,0.002]
[1760267825632,21.04290167,3831.0,3830.9,0.002]
[1760267825862,13.62648567,3831.0,3830.9,0.002]
[1760267826164,2.77330897,3831.0,3830.9,0.002]
[1760267826728,16.05523097,3831.0,3830.9,0.002]
[1760267826948,8.38978497,3831.0,3830.9,0.002]
[1760267827149,3.85020897,3831.0,3830.9,0.002]
[1760267827547,6.40863897,3831.0,3830.9,0.002]
[1760267827835,7.04950287,3831.0,3830.9,0.002]
[1760267828661,13.79744387,3831.0,3830.9,0.002]
[1760267828876,12.29703087,3831.0,3830.9,0.002]
[1760267829630,20.76792587,3831.0,3830.9,0.002]
[1760267830741,28.07158287,3831.0,3830.9,0.002]
[1760267831037,23.54727587,3831.0,3830.9,0.002]
[1760267831363,10.63770687,3831.0,3830.9,0.002]
[1760267831666,4.49107287,3831.0,3830.9,0.002]
[1760267831988,19.54374887,3831.0,3830.9,0.002]
[1760267832204,18.43598287,3831.0,3830.9,0.002]
[1760267832374,18.0264739,3831.0,3830.9,0.002]
[1760267832558,11.5979319,3831.0,3830.9,0.002]
[1760267832758,8.7890219,3831.0,3830.9,0.002]
[1760267833755,7.9362379,3831.0,3830.9,0.002]
[1760267834196,7.3151189,3831.0,3830.9,0.002]
[1760267834811,14.8449079,3831.0,3830.9,0.002]
[1760267834965,14.1613739,3831.0,3830.9,0.002]
[1760267835492,14.57079903,3831.0,3830.9,0.002]
[1760267835792,4.49098903,3831.0,3830.9,0.002]
[1760267835991,15.00165203,3831.0,3830.9,0.002]
[1760267836159,12.30579803,3831.0,3830.9,0.002]
[1760267836882,13.99879803,3831.0,3830.9,0.002]
[1760267837080,1.29652513,3831.0,3830.9,0.002]
[1760267837392,7.70856713,3831.0,3830.9,0.002]
[1760267837692,2.684,3830.9,3830.5,0.002]
[1760267837878,0.6336,3830.4,3829.2,14.5]
[1760267838059,0.6336,3830.2,3829.2,14.5]
[1760267838257,0.4438,3830.1,3829.2,14.5]
[1760267838759,0.6336,3829.9,3829.2,14.5]
[1760267838960,0.6336,3829.7,3829.2,14.5]
[1760267839160,0.6336,3829.5,3829.2,14.5]
[1760267839468,0.4438,3829.4,3829.2,14.5]
[1760267840192,0.6336,3829.7,3829.2,14.5]
[1760267840394,0.6336,3829.5,3829.2,14.5]
[1760267840601,0.4438,3829.4,3829.2,14.5]
[1760267840994,1.0774,3829.3,3829.2,14.5]
[1760267841800,0.1304,3829.2,3828.1,0.4433]
[1760267841982,0.1304,3828.2,3828.1,0.4433]
[1760267842311,0.1304,3828.2,3828.1,14.9433]
[1760267845481,0.78569099,3829.5,3828.1,14.9433]
[1760267845686,0.1304,3829.0,3828.2,0.4375]
[1760267845891,0.1304,3829.0,3828.4,0.1304]
[1760267846220,0.2319,3830.5,3827.0,0.6336]
[1760267846221,0.2319,3830.9,3828.5,0.4375]
[1760267846401,0.1304,3829.3,3828.9,14.5]
[1760267846709,1.0928,3830.2,3829.0,0.4375]
[1760267846907,0.6336,3830.2,3829.0,0.4375]
[1760267847421,0.4375,3830.3,3829.4,14.5]
[1760267847601,0.4375,3830.3,3829.5,0.4375]
[1760267847921,0.6336,3830.2,3829.5,0.4375]
[1760267850919,0.6336,3830.6,3829.5,0.4375]
[1760267851124,0.6336,3830.6,3829.6,14.5]
[1760267851295,0.6336,3830.0,3829.6,14.5]
[1760267851699,1.0928,3830.0,3829.6,14.5]
[1760267851998,0.6336,3829.8,3829.6,14.5]
[1760267852206,1.0928,3829.7,3829.6,14.5]
[1760267852408,0.764,3829.6,3828.7,0.4375]
[1760267852701,0.1304,3828.9,3828.7,0.4375]
[1760267852913,0.4592,3829.7,3828.8,14.9375]
[1760267853116,0.6336,3829.4,3828.8,14.9375]
[1760267853317,0.6336,3829.4,3828.8,0.4375]
[1760267853690,0.6336,3829.4,3828.1,0.1304]
[1760267853691,0.1304,3828.8,3828.1,0.5679]
[1760267853942,0.1304,3828.2,3828.1,0.4375]
[1760267854436,0.1304,3828.2,3828.1,14.9375]
[1760267854993,0.1304,3828.2,3828.1,14.5]
[1760267855232,0.764,3828.2,3828.1,14.5]
[1760267857137,1.528,3828.2,3828.1,14.5]
[1760267858604,1.528,3828.2,3828.1,14.502]
[1760267860234,1.2232,3828.2,3828.1,14.502]
[1760267860731,0.764,3828.2,3828.1,14.502]
[1760267862853,0.6336,3828.2,3828.1,14.502]
[1760267864852,1.0918,3828.2,3828.1,0.002]
[1760267865453,1.60632193,3828.2,3828.1,0.002]
[1760267865613,1.76695412,3828.2,3828.1,0.002]
[1760267866453,17.89930712,3828.2,3828.1,0.002]
[1760267866618,19.18158412,3828.2,3828.1,0.002]
[1760267867657,22.97913312,3828.2,3828.1,0.002]
[1760267867862,21.85660612,3828.2,3828.1,0.002]
[1760267868351,16.72543612,3828.2,3828.1,0.002]
[1760267868530,7.48098012,3828.2,3828.1,0.002]
[1760267868730,6.49298012,3828.2,3828.1,0.002]
[1760267869349,3.68695412,3828.2,3828.1,0.002]
[1760267869763,3.52632193,3828.2,3828.1,0.002]
[1760267872570,3.1166093,3828.2,3828.1,0.002]
[1760267874776,15.3285323,3828.2,3828.1,0.002]
[1760267875275,3.1166093,3828.2,3828.1,0.002]
[1760267875476,5.3086093,3828.2,3828.1,0.002]
[1760267875677,3.64747023,3828.2,3828.1,0.002]
[1760267875874,6.19365623,3828.2,3828.1,0.002]
[1760267876081,3.64747023,3828.2,3828.1,0.002]
[1760267876274,4.0572328,3828.2,3828.1,0.002]
[1760267878162,1.14817187,3828.2,3828.1,0.002]
[1760267878479,1.57797187,3828.2,3828.1,0.002]
[1760267880087,0.51457187,3828.2,3828.1,0.002]
[1760267880387,0.5346093,3828.2,3828.1,0.002]
[1760267880554,1.1682093,3828.2,3828.1,0.002]
[1760267882175,0.7384093,3828.2,3828.1,0.002]
[1760267882355,1.1682093,3828.2,3828.1,0.002]
[1760267883761,0.7384093,3828.2,3828.1,0.002]
[1760267885496,0.1048093,3828.2,3828.1,0.002]
[1760267885788,0.1304,3828.1,3827.7,0.002]
[1760267885990,0.6336,3828.0,3827.7,0.002]
[1760267886296,0.8658,3827.8,3827.7,0.002]
[1760267886675,1.2956,3827.8,3827.7,0.002]
[1760267887195,1.7548,3827.8,3827.7,0.002]
[1760267889505,0.6336,3827.7,3827.3,0.002]
[1760267890087,0.6336,3827.5,3827.3,0.002]
[1760267890291,0.8536,3827.4,3827.3,0.002]
[1760267890496,1.2373,3827.4,3827.3,0.002]
[1760267890662,7.020378,3827.4,3827.3,0.002]
[1760267890862,8.30775804,3827.4,3827.3,0.002]
[1760267891083,11.998427,3827.4,3827.3,0.002]
[1760267891284,2.5536,3827.3,3825.4,14.5]
[1760267891484,0.6336,3827.1,3825.4,14.5]
[1760267891690,0.6336,3826.9,3825.4,14.9592]
[1760267891896,0.6336,3826.7,3825.4,14.5]
[1760267892104,0.6336,3826.5,3825.4,14.5]
[1760267892304,0.6336,3826.3,3825.4,14.5]
[1760267892504,0.6336,3826.1,3825.4,14.5]
[1760267892704,0.6336,3825.9,3825.4,14.5]
[1760267893020,0.6336,3826.1,3825.4,14.5]
[1760267893421,0.6336,3826.1,3825.4,14.502]
[1760267894118,0.6336,3826.3,3825.4,14.9612]
[1760267895020,0.6336,3826.1,3825.4,14.502]
[1760267895318,0.6336,3825.9,3825.4,14.502]
[1760267895625,0.6336,3825.7,3825.4,14.502]
[1760267895924,1.0634,3825.7,3825.4,14.502]
[1760267896611,0.6336,3825.9,3825.4,14.502]
[1760267896806,1.0634,3825.9,3825.4,14.502]
[1760267897409,0.6336,3826.0,3825.5,0.4592]
[1760267897619,0.6336,3826.0,3825.4,14.502]
[1760267898134,0.22,3826.4,3825.5,0.4592]
[1760267898933,0.6336,3826.3,3825.5,0.4592]
[1760267901303,0.6336,3826.3,3825.6,14.5]
[1760267901617,0.6336,3826.3,3825.7,0.4592]
[1760267902319,0.6336,3826.3,3825.8,14.5]
[1760267902506,0.6336,3826.3,3825.9,0.4592]
[1760267903143,0.6336,3826.3,3826.0,14.5]
[1760267906107,0.6336,3826.3,3826.0,14.9384]
[1760267906341,0.6336,3826.3,3826.1,0.4384]
[1760267906637,0.6336,3826.3,3826.1,0.6539]
[1760267906830,0.764,3826.1,3826.0,14.5]
[1760267910070,0.6336,3826.0,3825.4,0.002]
[1760267910373,0.22,3826.4,3825.4,0.4404]
[1760267910374,0.764,3825.5,3825.4,0.4404]
[1760267910666,0.764,3825.5,3825.4,14.502]
[1760267911576,0.6336,3825.4,3825.0,0.002]
[1760267911777,1.1009,3825.4,3825.0,0.002]
[1760267914885,1.1009,3825.7,3825.0,0.002]
[1760267915656,1.3209,3825.7,3825.0,0.002]
[1760267916053,0.8536,3825.7,3825.0,0.002]
[1760267916259,0.8536,3825.7,3825.1,0.4384]
[1760267918158,0.8536,3825.7,3825.2,14.5]
[1760267918478,0.8536,3825.7,3825.2,14.9384]
[1760267918687,0.8536,3825.7,3825.2,14.5]
[1760267918888,0.8536,3825.7,3825.3,0.4384]
[1760267919585,0.8536,3825.7,3825.4,14.5]
[1760267921185,0.8536,3825.7,3825.5,0.4384]
[1760267921385,0.8536,3825.7,3825.6,0.4384]
[1760267921866,0.8536,3825.7,3825.6,14.9384]
[1760267923796,0.8536,3825.7,3825.6,14.5]
[1760267923969,0.8536,3825.7,3825.6,14.9589]
[1760267924298,0.22,3825.7,3825.6,14.9589]
[1760267924898,0.8536,3825.7,3825.6,14.9589]
[1760267926289,0.8536,3825.7,3825.6,14.5]
[1760267928688,1.301,3825.7,3825.6,14.5]
[1760267928892,0.764,3825.6,3825.0,0.002]
[1760267929189,0.6336,3825.6,3825.0,0.002]
[1760267929501,0.6336,3825.4,3825.0,0.002]
[1760267930003,0.6336,3825.6,3825.0,0.4609]
[1760267930168,0.6336,3825.6,3825.0,0.002]
[1760267930606,0.6336,3825.6,3825.0,0.4609]
[1760267931575,0.001,3825.4,3825.0,0.4609]
[1760267931876,0.6336,3825.1,3825.0,0.4609]
[1760267932087,0.6336,3825.1,3825.0,14.9609]
[1760267938308,0.6336,3825.1,3825.0,14.9609]
[1760267949831,0.001,3825.4,3825.0,14.9609]
[1760267950031,0.001,3825.4,3825.1,0.4592]
[1760267950635,0.001,3825.4,3825.3,14.5]
[1760267951011,0.001,3825.4,3825.3,14.9592]
[1760267959856,0.001,3825.4,3825.3,15.0896]
[1760267969881,0.001,3825.4,3825.3,15.0916]
[1760267971786,0.001,3825.4,3825.3,14.9612]
[1760267972081,0.001,3825.4,3825.3,15.0916]
[1760267975961,0.001,3825.4,3825.3,17.0116]
[1760267976187,0.001,3825.4,3825.3,16.8812]
[1760267976391,0.001,3825.4,3825.3,17.1012]
[1760267984098,0.001,3825.4,3825.3,15.1812]
[1760267984687,0.001,3825.4,3825.3,14.9612]
[1760267985108,0.001,3825.4,3825.3,15.06600216]
[1760267986404,0.001,3825.4,3825.3,15.19640216]
[1760267991412,0.001,3825.4,3825.3,14.9612]
[1760268001247,0.001,3825.4,3825.3,15.0916]
[1760268010043,0.001,3825.4,3825.3,14.9612]
[1760268010248,0.001,3825.4,3825.3,15.42827458]
[1760268010549,0.001,3825.4,3825.3,15.0916]
[1760268010730,0.001,3825.4,3825.3,15.19639145]
[1760268011648,0.001,3825.4,3825.3,15.42827458]
[1760268011947,0.001,3825.4,3825.3,15.19638102]
[1760268012857,0.001,3825.4,3825.3,15.0916]
[1760268018949,0.001,3825.4,3825.3,15.19639338]
[1760268023460,0.001,3825.4,3825.3,15.0916]
[1760268029449,0.001,3825.4,3825.3,15.19639338]
[1760268032872,0.001,3825.4,3825.3,15.0916]
[1760268052134,0.221,3825.4,3825.3,15.0916]
[1760268057555,0.221,3825.4,3825.3,14.9612]
[1760268059038,0.221,3825.4,3825.3,14.502]
[1760268059353,0.221,3825.4,3825.3,14.9595]
[1760268060559,0.221,3825.4,3825.3,14.502]
[1760268060937,0.6718,3825.4,3825.3,14.502]
[1760268061466,0.6718,3825.4,3825.3,0.002]
[1760268069440,0.77668873,3825.4,3825.3,0.002]
[1760268070257,0.6718,3825.4,3825.3,0.002]
[1760268070655,0.77669313,3825.4,3825.3,0.002]
[1760268073381,0.6718,3825.4,3825.3,0.002]
[1760268078471,1.3054,3825.4,3825.3,0.002]
[1760268078882,1.47693929,3825.4,3825.3,0.002]
[1760268086997,1.88695099,3825.4,3825.3,0.002]
[1760268088499,1.99183889,3825.4,3825.3,0.002]
[1760268090404,1.88695099,3825.4,3825.3,0.002]
[1760268097224,1.47693929,3825.4,3825.3,0.002]
[1760268104114,1.88690438,3825.4,3825.3,0.002]
[1760268104513,0.63096509,3825.4,3825.3,0.002]
[1760268104810,0.221,3825.4,3825.3,0.002]
[1760268106329,0.6502,3825.4,3825.3,0.002]
[1760268109212,0.221,3825.4,3825.3,0.002]
[1760268110946,0.8546,3825.4,3825.3,0.002]
[1760268114834,0.8546,3825.4,3825.3,0.4367]
[1760268115153,0.8546,3825.4,3825.3,0.002]
[1760268116425,0.8546,3825.4,3825.3,0.4393]
[1760268118368,0.221,3825.4,3825.3,0.4393]
[1760268118971,0.221,3825.4,3825.3,14.9393]
[1760268120877,0.221,3825.4,3825.3,14.502]
[1760268121039,0.8546,3825.4,3825.3,14.502]
[1760268124639,0.8546,3825.4,3825.3,0.002]
[1760268128240,0.8546,3825.4,3825.3,0.4393]
[1760268128442,0.8546,3825.4,3825.3,0.002]
[1760268128881,0.8546,3825.4,3825.3,14.502]
[1760268129243,1.3146,3825.4,3825.3,0.002]
[1760268129443,1.3146,3825.4,3825.0,0.002]
[1760268129444,0.6336,3825.3,3825.0,0.002]
[1760268129869,0.6336,3825.1,3825.0,0.002]
[1760268130388,0.46,3825.1,3825.0,0.002]
[1760268132625,1.3136,3825.1,3825.0,0.002]
[1760268132830,1.46869451,3825.1,3825.0,0.002]
[1760268133123,1.46869451,3825.1,3824.9,0.002]
[1760268133281,0.6336,3825.0,3824.9,0.002]
[1760268133799,1.3136,3825.0,3824.9,0.002]
[1760268134000,8.50193584,3825.0,3824.9,0.002]
[1760268134211,9.09403998,3825.0,3824.9,0.002]
[1760268134510,8.45576298,3825.0,3824.9,0.002]
[1760268134919,9.471621,3824.9,3823.9,14.5]
[1760268135080,0.6336,3824.7,3823.9,14.5]
[1760268135281,0.76693668,3824.7,3823.9,14.5]
[1760268135480,0.6336,3824.5,3823.9,14.5]
[1760268135914,0.6336,3824.3,3822.7,0.4373]
[1760268136202,0.6336,3824.1,3822.9,0.4373]
[1760268136419,0.6336,3824.1,3823.0,14.5]
[1760268136420,0.76496,3824.1,3823.0,14.5]
[1760268136608,0.6336,3823.9,3823.0,14.5]
[1760268137122,0.6336,3823.7,3823.0,14.5]
[1760268137332,0.6336,3823.5,3823.0,14.5]
[1760268137537,0.6336,3823.3,3823.0,14.5]
[1760268139546,0.8536,3823.2,3823.0,14.5]
[1760268141508,0.8536,3823.2,3823.1,0.005]
[1760268144658,0.8536,3823.2,3823.1,14.9423]
[1760268145022,0.8536,3823.2,3823.1,14.505]
[1760268146419,0.22,3823.2,3823.1,14.9642]
[1760268147748,0.22,3823.2,3823.1,0.4642]
[1760268148052,0.8536,3823.2,3823.1,0.005]
[1760268148218,0.8536,3823.2,3823.1,14.505]
[1760268148718,0.8536,3823.2,3823.1,14.9642]
[1760268152752,0.8536,3823.2,3823.1,17.57987837]
[1760268153383,2.61473413,3824.5,3823.1,17.57987837]
[1760268153384,0.6336,3824.5,3824.1,2.61496399]
[1760268153554,2.76943421,3825.1,3823.6,2.61533633]
[1760268153555,0.6336,3824.3,3823.6,2.61533633]
[1760268153740,0.6336,3824.3,3823.2,2.61558678]
[1760268153741,0.6336,3824.1,3823.2,0.4592]
[1760268153941,0.6336,3824.1,3823.7,2.61520839]
[1760268154146,0.6336,3823.9,3823.7,2.61520839]
[1760268154755,0.6336,3823.9,3823.5,2.61536862]
[1760268155084,0.6336,3823.9,3823.7,2.61520952]
[1760268155270,0.6336,3823.9,3823.8,2.61519953]
[1760268156470,0.6336,3823.9,3823.5,2.61536862]
[1760268156471,0.764,3823.8,3823.7,2.61524664]
[1760268156670,0.6336,3823.7,3823.6,2.61532799]
[1760268157077,0.6336,3823.9,3823.7,2.61524139]
[1760268157282,0.6336,3823.9,3823.6,2.61533568]
[1760268157591,0.6336,3823.8,3823.6,2.61533238]
[1760268157878,0.6336,3824.2,3823.6,2.61533238]
[1760268158079,0.6336,3824.0,3823.6,2.61533238]
[1760268158442,1.0786,3824.0,3823.6,2.61533238]
[1760268159096,0.6336,3824.0,3823.6,2.61533238]
[1760268159265,0.6336,3823.8,3823.6,2.61533238]
[1760268159463,1.0786,3823.8,3823.6,2.61533238]
[1760268159774,0.445,3824.0,3823.6,2.61533238]
[1760268159985,0.764,3823.6,3823.5,2.61539417]
[1760268160308,0.6336,3823.6,3823.5,2.61539417]
[1760268161087,0.6336,3823.6,3823.4,2.61546105]
[1760268161292,1.0786,3823.5,3823.1,14.505]
[1760268161589,0.6336,3823.3,3823.1,14.505]
[1760268161786,0.6336,3823.3,3823.1,17.12066883]
[1760268162207,0.6336,3823.3,3823.2,2.61560996]
[1760268162493,2.61515717,3823.9,3823.2,2.61560996]
[1760268162494,0.6336,3823.6,3823.4,2.61546439]
[1760268162667,0.6336,3823.9,3823.4,2.61546439]
[1760268162859,0.764,3823.4,3823.3,2.61551932]
[1760268163058,0.6336,3823.4,3823.3,2.61551932]
[1760268165209,0.41012874,3824.6,3823.1,0.005]
[1760268165490,4.53576385,3824.5,3823.5,2.61535291]
[1760268165690,0.1304,3823.7,3823.3,14.9571]
[1760268165890,0.6336,3824.3,3823.6,2.61528891]
[1760268166059,0.6336,3824.3,3823.7,2.61526333]
[1760268166259,0.6336,3824.3,3823.6,2.61531006]
[1760268167898,0.6336,3824.3,3823.7,2.61526662]
[1760268168210,0.6346,3824.5,3823.9,2.61512376]
[1760268168378,0.6346,3824.5,3823.8,2.61519381]
[1760268169480,1.92,3824.4,3823.7,3.07236234]
[1760268169801,0.1304,3823.7,3823.3,14.5]
[1760268170123,0.1304,3823.7,3823.6,2.61533633]
[1760268170670,0.1304,3823.7,3823.6,3.07243633]
[1760268177021,0.1314,3823.7,3823.6,3.07243633]
[1760268180826,0.1314,3823.7,3823.6,3.05283633]
[1760268182644,0.1314,3823.7,3823.6,17.55283633]
[1760268187109,0.001,3823.7,3823.6,17.55283633]
[1760268189162,0.001,3823.7,3823.6,18.31683633]
[1760268189460,0.001,3823.7,3823.6,18.44723633]
[1760268193031,0.001,3823.7,3823.6,17.81363633]
[1760268199051,0.001,3823.7,3823.6,19.73363633]
[1760268203569,0.001,3823.7,3823.6,20.36723633]
[1760268208805,0.001,3823.7,3823.6,22.30623633]
[1760268209680,0.001,3823.7,3823.6,20.36723633]
[1760268215617,0.001,3823.7,3823.6,27.52723633]
[1760268216820,0.001,3823.7,3823.6,20.36723633]
[1760268216987,0.001,3823.7,3823.6,27.52723633]
[1760268217321,0.001,3823.7,3823.6,20.36723633]
[1760268221135,0.1304,3825.0,3823.6,20.36723633]
[1760268221136,2.3713,3825.6,3824.8,2.61450744]
[1760268221332,0.2315,3825.9,3823.7,0.4576]
[1760268221520,1.921,3825.3,3824.5,0.5825]
[1760268221836,0.45361299,3825.2,3824.9,14.5]
[1760268222539,0.45361299,3825.2,3824.9,14.959]
[1760268222746,0.45361299,3825.2,3825.0,0.459]
[1760268223230,0.45361299,3825.2,3824.9,14.5]
[1760268224840,0.45361299,3825.2,3824.9,14.959]
[1760268230585,0.45361299,3825.2,3824.9,14.5]
[1760268231082,1.921,3825.3,3824.9,14.5]
[1760268231484,2.352,3825.3,3824.9,14.5]
[1760268231850,0.001,3825.2,3824.9,14.5]
[1760268233262,0.001,3825.2,3824.9,14.959]
[1760268236692,0.001,3825.2,3824.9,14.5]
[1760268236865,0.49780642,3825.2,3824.9,14.5]
[1760268237067,0.95640642,3825.2,3824.9,14.5]
[1760268237393,4.53437908,3825.0,3824.9,14.5]
[1760268237594,4.99297908,3825.0,3824.9,14.5]
[1760268238193,2.0504,3824.9,3824.2,0.4357]
[1760268238394,0.1304,3824.3,3824.2,0.4357]
[1760268238712,0.1304,3824.3,3824.2,14.9357]
[1760268239591,0.1304,3824.3,3824.2,14.5]
[1760268239791,0.589,3824.3,3824.2,14.5]
[1760268240006,5.12385762,3824.3,3824.2,14.5]
[1760268240320,5.89772113,3824.3,3824.2,14.5]
[1760268241308,1.92,3824.0,3823.2,3.05129091]
[1760268241614,0.1304,3823.7,3823.3,2.61553745]
[1760268241821,0.1304,3823.7,3823.5,14.5]
[1760268242005,3.07365902,3824.1,3823.5,14.5]
[1760268242208,2.61506826,3824.0,3823.5,14.5]
[1760268242411,2.61526233,3823.8,3823.5,14.5]
[1760268242589,2.61515166,3823.9,3823.5,14.5]
[1760268242786,4.53521283,3823.8,3823.5,14.5]
[1760268243490,0.4586,3823.7,3823.5,14.5]
[1760268243798,4.53521283,3823.8,3823.5,14.5]
[1760268243997,0.4586,3823.7,3823.5,14.5]
[1760268244324,3.18394231,3824.0,3823.5,14.5]
[1760268244621,0.1304,3823.7,3823.6,3.05099285]
[1760268244824,0.1304,3823.7,3823.6,0.4357]
[1760268245900,0.1304,3823.7,3823.6,3.05103633]
[1760268246112,0.1304,3823.7,3823.6,17.55103633]
[1760268246414,0.1304,3823.7,3823.6,17.11533633]
[1760268246629,0.1304,3823.7,3823.6,17.55103633]
[1760268246902,0.1304,3823.7,3823.6,14.9357]
[1760268247512,0.1304,3823.7,3823.6,17.55103633]
[1760268249631,0.1304,3823.7,3823.6,17.55303633]
[1760268249944,0.001,3825.2,3823.7,0.6336]
[1760268250115,0.001,3825.2,3824.3,2.61485603]
[1760268250116,0.1304,3824.6,3824.3,2.61485603]
[1760268250308,0.1304,3824.6,3824.5,0.1249]
[1760268250808,0.1304,3824.6,3824.5,15.0606]
[1760268252735,0.1304,3824.6,3824.5,14.6249]
[1760268252926,0.1304,3824.6,3824.5,14.5]
[1760268253513,0.1304,3824.6,3824.5,14.9357]
[1760268257224,0.1304,3824.6,3824.5,0.4357]
[1760268257747,0.1304,3824.6,3824.5,14.9357]
[1760268259657,0.1304,3824.6,3823.9,3.68440371]
[1760268259826,0.1304,3824.2,3823.9,3.68440371]
[1760268260028,0.1304,3824.2,3824.0,14.9357]
[1760268260533,0.1304,3824.2,3824.1,0.1249]
[1760268260728,0.1304,3824.2,3824.1,0.5606]
[1760268260926,0.1304,3824.2,3824.1,3.80919437]
[1760268261140,0.1304,3824.2,3824.1,18.30919437]
[1760268261451,0.1304,3824.2,3824.1,15.6942]
[1760268261860,0.1304,3824.2,3824.1,18.30919437]
[1760268262358,0.1304,3824.2,3824.1,14.5]
[1760268263827,2.74532599,3824.2,3824.1,14.5]
[1760268264121,3.20392599,3824.2,3823.6,0.002]
[1760268264230,1.04048325,3824.2,3823.6,0.002]
[1760268264434,2.61499437,3824.1,3823.6,0.002]
[1760268264857,2.61507654,3824.0,3823.6,0.002]
[1760268265332,2.61492974,3824.2,3823.6,0.002]
[1760268265735,2.61487365,3824.3,3823.6,0.002]
[1760268265934,0.4529,3824.8,3823.6,3.06819272]
[1760268266157,2.61477513,3824.5,3823.7,0.4509]
[1760268266864,2.61480061,3824.4,3823.7,0.4509]
[1760268267262,2.93055056,3824.7,3823.7,0.4509]
[1760268267566,2.61478963,3824.4,3823.7,0.4509]
[1760268269281,2.61478963,3824.4,3823.8,14.5]
[1760268275091,0.001,3825.0,3823.8,14.5]
[1760268275303,0.1304,3824.0,3823.9,3.06603114]
[1760268277294,0.1304,3824.0,3823.8,14.5]
[1760268277800,0.1304,3824.0,3823.9,0.4509]
[1760268280090,0.1304,3824.0,3823.8,17.11518485]
[1760268280286,0.1304,3824.0,3823.9,0.4509]
[1760268284112,0.1304,3824.0,3823.8,14.5]
[1760268284282,0.1304,3824.0,3823.9,0.4592]
[1760268291430,0.1304,3824.0,3823.9,3.07433114]
[1760268291609,0.001,3825.0,3824.0,0.6336]
[1760268291803,0.1304,3824.6,3824.2,0.6336]
[1760268292126,0.1304,3824.6,3824.4,3.2483864]
[1760268292325,0.1304,3824.6,3824.4,0.6336]
[1760268292531,0.1304,3824.6,3824.5,0.4592]
[1760268293027,0.1304,3824.6,3824.4,0.6336]
[1760268293328,0.1304,3824.6,3824.5,14.9592]
[1760268298111,0.1304,3824.6,3824.5,14.5]
[1760268299807,0.1304,3824.6,3824.5,14.953]
[1760268301542,0.1304,3824.6,3824.5,14.5]
[1760268302044,0.1304,3824.6,3824.5,14.953]
[1760268306232,0.1304,3824.6,3824.5,14.5]
[1760268307338,2.0504,3824.6,3824.5,14.5]
[1760268307741,2.0504,3824.6,3824.5,16.439]
[1760268309644,2.51689575,3824.6,3824.5,16.439]
[1760268309825,5.12395251,3824.6,3824.5,16.439]
[1760268311952,2.0504,3824.6,3824.5,1.939]
[1760268312130,1.92,3824.6,3824.5,1.939]
[1760268312339,4.53465251,3824.6,3824.5,16.439]
[1760268312837,4.99355251,3824.6,3824.5,16.439]
[1760268313052,5.29546492,3824.6,3824.5,16.439]
[1760268313561,0.1304,3824.6,3824.5,14.953]
[1760268313762,0.1304,3824.6,3824.5,15.5866]
[1760268313963,0.1314,3825.0,3824.6,0.6336]
[1760268314273,0.1314,3825.0,3824.8,0.6336]
[1760268314660,0.1314,3825.0,3824.9,0.453]
[1760268316169,0.1314,3825.0,3824.9,14.953]
[1760268318484,0.001,3825.0,3824.9,18.20104743]
[1760268319495,0.001,3825.0,3824.9,18.33144743]
[1760268319949,0.001,3825.0,3824.9,18.43627019]
[1760268322603,0.001,3825.3,3824.9,18.43627019]
[1760268322771,0.001,3826.2,3825.7,3.24750072]
[1760268323305,0.001,3826.2,3825.7,18.33090072]
[1760268323600,0.001,3826.2,3825.7,18.43570068]
[1760268325482,1e-08,3826.2,3826.1,3.24722745]